fUSD/lending_fUSD_20250926
["ID","MTS","AMOUNT","RATE_DAILY","PERIOD"]
[387807126,1758884099914,614.26,0.00030136,120]
[387807127,1758884100511,614.26,0.00030136,120]
[387807128,1758884100764,614.26,0.00030136,120]
[387807129,1758884101008,614.26,0.00030136,120]
[387807130,1758884101321,614.26,0.00030136,120]
[387807131,1758884101864,614.26,0.00030136,120]
[387807132,1758884102097,614.26,0.00030136,120]
[387807133,1758884102282,614.26,0.00030136,120]
[387807134,1758884102596,614.26,0.00030136,120]
[387807135,1758884102841,614.26,0.00030136,120]
[387807136,1758884103026,614.26,0.00030136,120]
[387807137,1758884103700,614.26,0.00030136,120]
[387807138,1758884103898,614.26,0.00030136,120]
[387807139,1758884104132,614.26,0.00030136,120]
[387807140,1758884104394,614.26,0.00030136,120]
[387807141,1758884104710,614.26,0.00030136,120]
[387807142,1758884104995,614.26,0.00030136,120]
[387807143,1758884105559,614.44308079,0.00030136,120]
[387807146,1758884157856,500.0,0.00030136,120]
[387807147,1758884158032,500.0,0.00030136,120]
[387807148,1758884158230,500.0,0.00030136,120]
[387807149,1758884158386,500.0,0.00030136,120]
[387807150,1758884158800,512.1426582,0.00030136,120]
[387807152,1758884175399,500.0,0.00030136,120]
[387807153,1758884175669,522.40359554,0.00030136,120]
[387807155,1758884187963,500.0,0.00030136,120]
[387807156,1758884188206,500.0,0.00030136,120]
[387807157,1758884188427,500.0,0.00030136,120]
[387807158,1758884188670,500.0,0.00030136,120]
[387807159,1758884188903,500.0,0.00030136,120]
[387807160,1758884189159,500.0,0.00030136,120]
[387807161,1758884189411,514.9017101,0.00030136,120]
[387807164,1758884217643,500.0,0.00030136,120]
[387807165,1758884217946,500.0,0.00030136,120]
[387807166,1758884218059,500.0,0.00030136,120]
[387807167,1758884218313,500.0,0.00030136,120]
[387807168,1758884218543,500.0,0.00030136,120]
[387807169,1758884218806,500.0,0.00030136,120]
[387807170,1758884219259,500.0,0.00030136,120]
[387807171,1758884219503,500.0,0.00030136,120]
[387807172,1758884219853,500.0,0.00030136,120]
[387807173,1758884220094,500.0,0.00030136,120]
[387807174,1758884220335,500.0,0.00030136,120]
[387807175,1758884220967,500.0,0.00030136,120]
[387807176,1758884221134,500.0,0.00030136,120]
[387807177,1758884221339,500.0,0.00030136,120]
[387807178,1758884221622,500.0,0.00030136,120]
[387807179,1758884221751,500.0,0.00030136,120]
[387807180,1758884221914,500.0,0.00030136,120]
[387807181,1758884222036,500.0,0.00030136,120]
[387807182,1758884222236,500.0,0.00030136,120]
[387807183,1758884223174,500.0,0.00030136,120]
[387807184,1758884223373,500.0,0.00030136,120]
[387807185,1758884223469,224.71779184,0.00030136,120]
[387807186,1758884294895,500.0,0.00030136,120]
[387807187,1758884295131,500.0,0.00030136,120]
[387807188,1758884295604,500.0,0.00030136,120]
[387807189,1758884295794,500.0,0.00030136,120]
[387807190,1758884295968,500.0,0.00030136,120]
[387807191,1758884296122,500.0,0.00030136,120]
[387807192,1758884296405,500.0,0.00030136,120]
[387807193,1758884296643,500.0,0.00030136,120]
[387807194,1758884296894,500.0,0.00030136,120]
[387807195,1758884297175,550.16788703,0.00030136,120]
[387807196,1758884298994,500.0,0.00030136,120]
[387807197,1758884300198,500.0,0.00030136,120]
[387807198,1758884300362,500.0,0.00030136,120]
[387807199,1758884300522,500.0,0.00030136,120]
[387807200,1758884300658,500.0,0.00030136,120]
[387807201,1758884300689,500.0,0.00030136,120]
[387807202,1758884300828,500.0,0.00030136,120]
[387807203,1758884300894,500.0,0.00030136,120]
[387807204,1758884301045,500.0,0.00030136,120]
[387807205,1758884301103,500.0,0.00030136,120]
[387807206,1758884301262,500.0,0.00030136,120]
[387807207,1758884301319,500.0,0.00030136,120]
[387807208,1758884301521,500.0,0.00030136,120]
[387807209,1758884301560,500.0,0.00030136,120]
[387807210,1758884301714,500.0,0.00030136,120]
[387807211,1758884301769,500.0,0.00030136,120]
[387807212,1758884301987,500.0,0.00030136,120]
[387807213,1758884302437,500.0,0.00030136,120]
[387807214,1758884302589,500.0,0.00030136,120]
[387807215,1758884302714,500.0,0.00030136,120]
[387807216,1758884302851,500.0,0.00030136,120]
[387807217,1758884303052,500.0,0.00030136,120]
[387807218,1758884303199,500.0,0.00030136,120]
[387807219,1758884303444,500.0,0.00030136,120]
[387807220,1758884303660,500.0,0.00030136,120]
[387807221,1758884303903,500.0,0.00030136,120]
[387807222,1758884304091,500.0,0.00030136,120]
[387807223,1758884304929,500.0,0.00030136,120]
[387807224,1758884305082,500.0,0.00030136,120]
[387807225,1758884305214,277.86355185,0.00030136,120]
[387807226,1758884308209,152.93,0.00010696,2]
[387807227,1758884308423,135.02129591,0.00012033,2]
[387807228,1758884308450,17.90870409,0.00012033,2]
[387807229,1758884308596,152.93,0.0001337,2]
[387807230,1758884308799,152.93,0.00014707,2]
[387807231,1758884309062,152.93,0.00016044,2]
[387807232,1758884309219,152.93,0.00017381,2]
[387807234,1758884333273,500.0,0.00030136,120]
[387807235,1758884333453,500.0,0.00030136,120]
[387807236,1758884333839,500.0,0.00030136,120]
[387807237,1758884334076,500.0,0.00030136,120]
[387807238,1758884334231,500.0,0.00030136,120]
[387807239,1758884334429,500.0,0.00030136,120]
[387807240,1758884334844,596.65480257,0.00030136,120]
[387807241,1758884335631,2175.42,0.00030136,120]
[387807242,1758884335846,250.0,0.00015,2]
[387807243,1758884335875,2175.42,0.00030136,120]
[387807244,1758884336227,2175.42,0.00030136,120]
[387807245,1758884336529,2175.42,0.00030136,120]
[387807246,1758884336917,2175.42,0.00030136,120]
[387807247,1758884337079,2175.42,0.00030136,120]
[387807248,1758884337343,2175.42,0.00030136,120]
[387807249,1758884337583,2175.42,0.00030136,120]
[387807250,1758884337804,2175.42,0.00030136,120]
[387807251,1758884338034,2175.42,0.00030136,120]
[387807252,1758884338287,2175.42,0.00030136,120]
[387807253,1758884338586,2175.42,0.00030136,120]
[387807254,1758884338807,2175.42,0.00030136,120]
[387807255,1758884339046,2175.42,0.00030136,120]
[387807256,1758884339529,2175.42,0.00030136,120]
[387807257,1758884339728,2175.42,0.00030136,120]
[387807258,1758884339917,2175.42,0.00030136,120]
[387807259,1758884340060,2175.42,0.00030136,120]
[387807260,1758884340261,2175.42,0.00030136,120]
[387807261,1758884340502,2175.42,0.00030136,120]
[387807262,1758884340813,2175.42,0.00030136,120]
[387807263,1758884341041,2175.42,0.00030136,120]
[387807264,1758884341298,2175.42,0.00030136,120]
[387807265,1758884341720,2175.53019147,0.00030136,120]
[387807268,1758884373319,256.14,0.000184,2]
[387807269,1758884409440,500.0,0.00030136,120]
[387807270,1758884409684,500.0,0.00030136,120]
[387807271,1758884409927,500.0,0.00030136,120]
[387807272,1758884410289,500.0,0.00030136,120]
[387807273,1758884410566,500.0,0.00030136,120]
[387807274,1758884410803,520.19999978,0.00030136,120]
[387807276,1758884436978,503.29904387,0.00030136,120]
[387807278,1758884453173,712.33,0.00030136,120]
[387807279,1758884453275,712.33,0.00030136,120]
[387807280,1758884453448,712.33,0.00030136,120]
[387807281,1758884453617,712.33,0.00030136,120]
[387807282,1758884453715,712.33,0.00030136,120]
[387807283,1758884453811,712.33,0.00030136,120]
[387807284,1758884453937,712.33,0.00030136,120]
[387807285,1758884454215,712.33,0.00030136,120]
[387807286,1758884454294,712.33,0.00030136,120]
[387807287,1758884454396,712.33,0.00030136,120]
[387807288,1758884454469,712.33,0.00030136,120]
[387807289,1758884454879,712.33,0.00030136,120]
[387807290,1758884455076,712.33,0.00030136,120]
[387807291,1758884455191,712.33,0.00030136,120]
[387807292,1758884455682,712.33,0.00030136,120]
[387807293,1758884455783,712.33,0.00030136,120]
[387807294,1758884455941,712.33,0.00030136,120]
[387807295,1758884456279,712.33,0.00030136,120]
[387807296,1758884456483,712.33,0.00030136,120]
[387807297,1758884456935,712.33,0.00030136,120]
[387807298,1758884457192,712.33,0.00030136,120]
[387807299,1758884457498,712.33,0.00030136,120]
[387807300,1758884457751,712.33,0.00030136,120]
[387807301,1758884458023,712.37341349,0.00030136,120]
[387807302,1758884459249,500.0,0.00030136,120]
[387807303,1758884459620,500.0,0.00030136,120]
[387807304,1758884460127,500.0,0.00030136,120]
[387807305,1758884460947,642.4109398,0.00030136,120]
[387807306,1758884467078,500.0,0.00030136,120]
[387807307,1758884467616,500.0,0.00030136,120]
[387807308,1758884467709,500.0,0.00030136,120]
[387807309,1758884467882,500.0,0.00030136,120]
[387807310,1758884468118,500.0,0.00030136,120]
[387807311,1758884468357,500.0,0.00030136,120]
[387807312,1758884468542,500.0,0.00030136,120]
[387807313,1758884468710,500.0,0.00030136,120]
[387807314,1758884468854,500.0,0.00030136,120]
[387807315,1758884469222,500.0,0.00030136,120]
[387807316,1758884469441,500.0,0.00030136,120]
[387807317,1758884469716,500.0,0.00030136,120]
[387807318,1758884469838,500.0,0.00030136,120]
[387807319,1758884470009,497.16064996,0.00030136,120]
[387807320,1758884489225,500.0,0.00030136,120]
[387807321,1758884489432,500.0,0.00030136,120]
[387807322,1758884489539,500.0,0.00030136,120]
[387807323,1758884489705,500.0,0.00030136,120]
[387807324,1758884490133,500.0,0.00030136,120]
[387807325,1758884490638,500.0,0.00030136,120]
[387807326,1758884490850,500.0,0.00030136,120]
[387807327,1758884491016,500.0,0.00030136,120]
[387807328,1758884491328,500.0,0.00030136,120]
[387807329,1758884491819,500.0,0.00030136,120]
[387807330,1758884492748,228.92459043,0.00030136,120]
[387807331,1758884508393,500.0,0.00030136,120]
[387807332,1758884508541,500.0,0.00030136,120]
[387807333,1758884508818,500.0,0.00030136,120]
[387807334,1758884509290,500.0,0.00030136,120]
[387807335,1758884509641,500.0,0.00030136,120]
[387807336,1758884509913,500.0,0.00030136,120]
[387807337,1758884510464,500.0,0.00030136,120]
[387807338,1758884510683,500.0,0.00030136,120]
[387807339,1758884510815,624.93291976,0.00030136,120]
[387807340,1758884561864,203.0,0.00029987,120]
[387807345,1758884575103,517.1,0.00030136,120]
[387807346,1758884575518,517.1,0.00030136,120]
[387807347,1758884575676,517.1,0.00030136,120]
[387807349,1758884575833,517.1,0.00030136,120]
[387807350,1758884576061,517.1,0.00030136,120]
[387807351,1758884576290,517.1,0.00030136,120]
[387807352,1758884576500,517.1,0.00030136,120]
[387807353,1758884576654,517.1,0.00030136,120]
[387807354,1758884577647,517.1,0.00030136,120]
[387807355,1758884577821,517.1,0.00030136,120]
[387807356,1758884578092,517.1,0.00030136,120]
[387807357,1758884578650,517.1,0.00030136,120]
[387807358,1758884578941,517.1,0.00030136,120]
[387807359,1758884579209,517.1,0.00030136,120]
[387807360,1758884579372,517.1,0.00030136,120]
[387807361,1758884579528,517.1,0.00030136,120]
[387807362,1758884579831,517.1,0.00030136,120]
[387807363,1758884580279,517.1,0.00030136,120]
[387807364,1758884580510,517.1,0.00030136,120]
[387807365,1758884581097,517.1,0.00030136,120]
[387807366,1758884581295,517.1,0.00030136,120]
[387807367,1758884581681,517.1,0.00030136,120]
[387807368,1758884581879,517.1,0.00030136,120]
[387807369,1758884582031,517.26084296,0.00030136,120]
[387807373,1758884602767,500.0,0.00030136,120]
[387807374,1758884602944,500.0,0.00030136,120]
[387807375,1758884603187,500.0,0.00030136,120]
[387807376,1758884603374,500.0,0.00030136,120]
[387807377,1758884603976,500.0,0.00030136,120]
[387807378,1758884604239,500.0,0.00030136,120]
[387807379,1758884604660,500.0,0.00030136,120]
[387807380,1758884604918,500.0,0.00030136,120]
[387807381,1758884605397,500.0,0.00030136,120]
[387807382,1758884605589,500.0,0.00030136,120]
[387807383,1758884605782,500.0,0.00030136,120]
[387807384,1758884606003,500.0,0.00030136,120]
[387807385,1758884606213,500.0,0.00030136,120]
[387807386,1758884606559,500.0,0.00030136,120]
[387807387,1758884606699,500.0,0.00030136,120]
[387807388,1758884606835,500.0,0.00030136,120]
[387807389,1758884606993,221.98971822,0.00030136,120]
[387807392,1758884631683,500.0,0.00030136,120]
[387807393,1758884631837,500.0,0.00030136,120]
[387807394,1758884631951,500.0,0.00030136,120]
[387807396,1758884632480,500.0,0.00030136,120]
[387807397,1758884632670,500.0,0.00030136,120]
[387807398,1758884632861,500.0,0.00030136,120]
[387807399,1758884633046,500.0,0.00030136,120]
[387807400,1758884633235,500.0,0.00030136,120]
[387807401,1758884633416,500.0,0.00030136,120]
[387807402,1758884633994,500.0,0.00030136,120]
[387807403,1758884634278,500.0,0.00030136,120]
[387807404,1758884634931,505.03826795,0.00030136,120]
[387807416,1758884727013,-187.16,0.00018622,2]
[387807417,1758884728103,946.55,0.00030136,120]
[387807418,1758884728462,946.55,0.00030136,120]
[387807419,1758884728721,946.55,0.00030136,120]
[387807420,1758884728957,946.55,0.00030136,120]
[387807421,1758884729546,946.55,0.00030136,120]
[387807422,1758884729915,946.55,0.00030136,120]
[387807423,1758884730153,946.55,0.00030136,120]
[387807424,1758884730320,-184.85025195,0.00018622,2]
[387807425,1758884730461,946.55,0.00030136,120]
[387807426,1758884731003,946.55,0.00030136,120]
[387807427,1758884731253,946.55,0.00030136,120]
[387807428,1758884731645,946.55,0.00030136,120]
[387807429,1758884731832,946.55,0.00030136,120]
[387807430,1758884732328,946.55,0.00030136,120]
[387807431,1758884732510,946.55,0.00030136,120]
[387807434,1758884732704,946.55,0.00030136,120]
[387807435,1758884733063,946.55,0.00030136,120]
[387807436,1758884733429,946.55,0.00030136,120]
[387807437,1758884733991,946.55,0.00030136,120]
[387807438,1758884734263,946.55,0.00030136,120]
[387807439,1758884734929,946.55,0.00030136,120]
[387807440,1758884735439,946.55,0.00030136,120]
[387807441,1758884735709,946.55,0.00030136,120]
[387807442,1758884735911,946.55,0.00030136,120]
[387807443,1758884736417,-286.42333605,0.00018622,2]
[387807444,1758884736475,946.71878888,0.00030136,120]
[387807448,1758884763006,500.0,0.00030136,120]
[387807449,1758884763205,506.28985686,0.00030136,120]
[387807450,1758884765158,-268.03735725,0.00018622,2]
[387807451,1758884766703,-112.50075588,0.00018622,2]
[387807452,1758884766724,-151.0,0.00018622,2]
[387807453,1758884769935,-190.26905656,0.00018622,2]
[387807454,1758884772108,-197.55987651,0.00018717,2]
[387807455,1758884772136,-56.96572027,0.00018717,2]
[387807460,1758884800360,3000.0,0.00017259,2]
[387807463,1758884805011,3000.0,0.00018355,2]
[387807468,1758884843096,500.0,0.00030136,120]
[387807469,1758884843499,500.0,0.00030136,120]
[387807470,1758884843697,500.0,0.00030136,120]
[387807471,1758884844618,500.0,0.00030136,120]
[387807472,1758884844794,500.0,0.00030136,120]
[387807473,1758884844994,500.0,0.00030136,120]
[387807474,1758884845190,500.0,0.00030136,120]
[387807475,1758884845309,382.28261493,0.00030136,120]
[387807481,1758884898722,500.0,0.00030136,120]
[387807484,1758884902443,-225.26022729,0.00018637,2]
[387807497,1758884979407,500.0,0.00030136,120]
[387807498,1758884979947,500.0,0.00030136,120]
[387807499,1758884980113,504.96582194,0.00030136,120]
[387807526,1758885037465,-930.63,0.00018619,2]
[387807527,1758885037691,-2216.13977271,0.00018637,2]
[387807528,1758885037701,-300.0,0.00018696,2]
[387807529,1758885037711,-1200.0,0.00018696,2]
[387807530,1758885037720,-592.50635714,0.00018697,2]
[387807531,1758885037730,-164.57695813,0.00018697,2]
[387807532,1758885037739,-1633.16967343,0.00018697,2]
[387807533,1758885037748,-300.0,0.00018707,2]
[387807534,1758885037757,-443.03427973,0.00018717,2]
[387807535,1758885037766,-500.0,0.00018717,2]
[387807536,1758885037776,-556.35299566,0.00018717,2]
[387807537,1758885037785,-2500.0,0.00018717,2]
[387807538,1758885037794,-2500.0,0.00018717,2]
[387807539,1758885037804,-2500.0,0.00018717,2]
[387807540,1758885037813,-152.93,0.00018717,2]
[387807541,1758885037823,-500.0,0.00018718,2]
[387807543,1758885037832,-5068.46610806,0.00018718,2]
[387807544,1758885037844,-14612.83304073,0.00018718,2]
[387807545,1758885037864,-135452.53780461,0.00018718,2]
[387807546,1758885037875,-11616.17410146,0.00018718,2]
[387807547,1758885037958,-556.64674786,0.00018718,2]
[387807548,1758885037970,-440.92703099,0.00018718,2]
[387807549,1758885038079,-2690.95070822,0.00018718,2]
[387807550,1758885038140,-4159.59469836,0.00018718,2]
[387807658,1758885039506,-365.14985814,0.00018718,2]
[387807672,1758885039624,-4208.47710192,0.00018718,2]
[387807674,1758885039636,-4594.10000004,0.00018718,2]
[387807906,1758885041867,-586.4,0.00018718,2]
[387808300,1758885045743,-133705.87377699,0.00018718,2]
[387808302,1758885045756,-108636.0,0.00018718,2]
[387808309,1758885045818,-1221.83948381,0.00018718,2]
[387808316,1758885045880,-214146.85080081,0.00018718,2]
[387808318,1758885045889,-154957.21,0.00018797,2]
[387808320,1758885045899,-9999.99,0.00018797,2]
[387808322,1758885045908,-9999.99,0.00018797,2]
[387808324,1758885045917,-299.99,0.00018797,4]
[387808326,1758885045926,-500.0,0.00018992,2]
[387808328,1758885045936,-5023.6931635,0.00019,2]
[387808330,1758885045945,-396.61,0.00019085,2]
[387808333,1758885045954,-500.0,0.00019265,2]
[387808334,1758885045964,-607.21974266,0.00019343,2]
[387808337,1758885045974,-500.0,0.00019343,2]
[387808339,1758885045983,-500.0,0.00019343,2]
[387808341,1758885045993,-500.0,0.00019357,2]
[387808343,1758885046002,-510.87931102,0.00019357,2]
[387808345,1758885046013,-3000.0,0.00019451,2]
[387808347,1758885046022,-500.0,0.00019539,2]
[387808349,1758885046031,-1633.16967335,0.00019657,2]
[387808351,1758885046041,-401.55201845,0.00019696,2]
[387808353,1758885046051,-500.0,0.00019813,2]
[387808355,1758885046060,-1000.0,0.00019891,2]
[387808357,1758885046070,-511.48863841,0.00019891,2]
[387808359,1758885046080,-96763.5588931,0.000199,2]
[387808361,1758885046090,-1000.0,0.00019905,2]
[387808363,1758885046099,-262.73,0.00019907,2]
[387808365,1758885046108,-96763.5588931,0.0001992,2]
[387808367,1758885046118,-96763.5588931,0.0001992,2]
[387808369,1758885046127,-96763.5588931,0.00019939,2]
[387808371,1758885046136,-96763.5588931,0.0001994,2]
[387808373,1758885046145,-96763.5588931,0.00019954,2]
[387808375,1758885046154,-96763.5588931,0.00019961,2]
[387808377,1758885046165,-500.0,0.0001997,2]
[387808379,1758885046174,-1000.0,0.0001997,2]
[387808381,1758885046183,-500.0,0.0001997,2]
[387808383,1758885046192,-500.0,0.0001997,2]
[387808385,1758885046202,-1000.0,0.0001997,2]
[387808387,1758885046211,-500.0,0.0001997,2]
[387808389,1758885046221,-1000.0,0.0001997,2]
[387808390,1758885046230,-500.0,0.0001997,2]
[387808393,1758885046239,-1000.0,0.0001997,2]
[387808395,1758885046249,-525.91151911,0.0001997,2]
[387808397,1758885046258,-1910.44855493,0.0001997,2]
[387808399,1758885046267,-209.40437684,0.00019988,2]
[387808401,1758885046277,-174.00075261,0.00019988,2]
[387808403,1758885046286,-5000.0,0.0002,2]
[387808405,1758885046299,-150.0,0.0002,2]
[387808407,1758885046309,-57828.1481949,0.0002,2]
[387808408,1758885046318,-150.0,0.0002,2]
[387808411,1758885046328,-2904.18578116,0.0002,2]
[387808413,1758885046339,-150.0,0.0002,2]
[387808414,1758885046348,-589.4960622,0.0002,2]
[387808417,1758885046358,-150.0,0.0002,2]
[387808418,1758885046368,-2608.90622392,0.0002,2]
[387808421,1758885046377,-200.0,0.0002,2]
[387808422,1758885046387,-168.0,0.00020008,2]
[387808424,1758885046397,-168.0,0.00020021,2]
[387808426,1758885046406,-396.61,0.0002004,2]
[387808428,1758885046415,-152.93,0.00020054,2]
[387808430,1758885046425,-168.0,0.0002008,2]
[387808432,1758885046435,-500.0,0.00020087,2]
[387808434,1758885046444,-25000.0,0.00020098,2]
[387808436,1758885046453,-5000.0,0.000201,2]
[387808438,1758885046462,-1000.0,0.0002012,2]
[387808440,1758885046472,-5000.0,0.00020121,2]
[387808443,1758885046481,-5000.0,0.00020143,2]
[387808445,1758885046491,-400.0,0.00020257,2]
[387808446,1758885046500,-168.0,0.00020257,2]
[387808448,1758885046509,-6228.0,0.00020262,2]
[387808451,1758885046519,-4179.0,0.00020262,2]
[387808452,1758885046528,-728.0,0.00020262,2]
[387808454,1758885046538,-18905.0,0.00020262,2]
[387808456,1758885046548,-152.39,0.00020274,2]
[387808458,1758885046558,-150.0,0.0002028,2]
[387808461,1758885046568,-2981.71,0.000203,2]
[387808462,1758885046578,-500.0,0.00020325,2]
[387808465,1758885046588,-5008.46,0.00020352,2]
[387808466,1758885046598,-285.07,0.00020358,2]
[387808468,1758885046610,-500.0,0.00020361,2]
[387808471,1758885046620,-2474.93,0.00020377,2]
[387808473,1758885046629,-168.0,0.00020381,2]
[387808475,1758885046639,-420.0,0.00020385,2]
[387808476,1758885046650,-5000.0,0.00020388,2]
[387808478,1758885046667,-1506.0,0.0002039,2]
[387808480,1758885046677,-2043.0,0.0002039,2]
[387808483,1758885046687,-3396.0,0.0002039,2]
[387808486,1758885046697,-1583.0,0.0002039,2]
[387808489,1758885046706,-1305.0,0.0002039,2]
[387808492,1758885046715,-603.0,0.0002039,2]
[387808495,1758885046726,-569.0,0.0002039,2]
[387808498,1758885046736,-814.0,0.0002039,2]
[387808501,1758885046745,-899.0,0.0002039,2]
[387808504,1758885046754,-5000.0,0.00020425,2]
[387808506,1758885046763,-1500.0,0.00020439,2]
[387808508,1758885046773,-2219.4135479,0.00020448,2]
[387808510,1758885046783,-1500.0,0.00020453,2]
[387808513,1758885046792,-150.0,0.00020481,2]
[387808515,1758885046802,-168.0,0.00020481,2]
[387808517,1758885046811,-1680.0,0.00020484,2]
[387808519,1758885046820,-2518.45551723,0.00020484,2]
[387808521,1758885046829,-150.0,0.00020501,2]
[387808523,1758885046838,-168.0,0.00020507,2]
[387808525,1758885046847,-200.0,0.00020536,2]
[387808527,1758885046857,-322.6107,0.00020536,2]
[387808529,1758885046866,-3000.0,0.00020547,2]
[387808531,1758885046875,-2501.58,0.00020553,2]
[387808533,1758885046885,-5000.0,0.00020558,2]
[387808535,1758885046894,-300.0,0.00020567,2]
[387808537,1758885046903,-254.52559678,0.00020567,2]
[387808539,1758885046912,-195.0,0.00020567,2]
[387808541,1758885046922,-168.0,0.0002057,2]
[387808543,1758885046931,-3067.0,0.00020588,2]
[387808544,1758885046940,-300.0,0.00020588,2]
[387808545,1758885046949,-300.0,0.00020588,2]
[387808546,1758885046958,-2500.0,0.00020588,2]
[387808547,1758885046967,-1633.16967335,0.00020618,2]
[387808548,1758885046979,-500.0,0.00020635,2]
[387808549,1758885046989,-326.31,0.0002064,2]
[387808550,1758885046998,-1506.0,0.00020664,2]
[387808551,1758885047008,-161.49737446,0.000208,2]
[387808552,1758885047018,-150.36,0.00020812,2]
[387808553,1758885047027,-2501.58,0.00020818,2]
[387808554,1758885047037,-168.0,0.00020868,2]
[387808555,1758885047046,-823.88,0.0002087,2]
[387808556,1758885047055,-2290.56,0.00020874,2]
[387808557,1758885047065,-14240.59,0.000209,2]
[387808559,1758885047074,-14240.59,0.000209,2]
[387808562,1758885047088,-500.0,0.00020909,2]
[387808582,1758885047279,-153.53,0.00020933,2]
[387808583,1758885047310,-1506.0,0.00020938,2]
[387808584,1758885047320,-9335.52,0.00020974,2]
[387808585,1758885047329,-1000.0,0.00020986,2]
[387808586,1758885047338,-2000.0,0.00020987,2]
[387808587,1758885047347,-2615.39,0.0002099,2]
[387808588,1758885047356,-396.61,0.00020994,2]
[387808589,1758885047365,-2000.0,0.00021001,2]
[387808590,1758885047375,-152.77,0.00021004,4]
[387808591,1758885047384,-300.25,0.00021077,4]
[387808592,1758885047394,-172.3,0.00021173,2]
[387808593,1758885047403,-195.18,0.00021173,2]
[387808594,1758885047412,-500.0,0.00021183,2]
[387808595,1758885047422,-168.0,0.00021185,2]
[387808596,1758885047431,-165.08,0.0002119,4]
[387808597,1758885047440,-14240.59,0.000212,2]
[387808598,1758885047450,-2518.34,0.00021201,4]
[387808599,1758885047461,-1506.0,0.00021212,2]
[387808600,1758885047473,-152.93,0.00021391,2]
[387808601,1758885047482,-162.92,0.00021412,2]
[387808602,1758885047492,-2219.41354784,0.00021438,2]
[387808603,1758885047502,-500.0,0.00021457,2]
[387808604,1758885047512,-168.0,0.00021459,2]
[387808605,1758885047522,-168.0,0.00021463,2]
[387808606,1758885047531,-168.0,0.0002147,2]
[387808607,1758885047541,-1506.0,0.00021486,2]
[387808608,1758885047554,-5000.0,0.00021497,4]
[387808609,1758885047573,-168.0,0.00021509,2]
[387808610,1758885047586,-2405.66575964,0.00021549,2]
[387808611,1758885047595,-155.93,0.00021551,4]
[387808612,1758885047604,-168.0,0.00021571,2]
[387808613,1758885047613,-2518.36,0.00021573,4]
[387808614,1758885047623,-1633.16967335,0.00021578,2]
[387808615,1758885047632,-516.91207795,0.00021592,2]
[387808616,1758885047642,-500.0,0.00021731,2]
[387808617,1758885047651,-151.07,0.0002175,2]